[Event "German Bundesliga 2022-23"]
[Site "Germany"]
[Date "2022.10.23"]
[Round "2.14"]
[White "Hess, Max"]
[Black "Krasenkow, Michal"]
[Result "0-1"]
[ECO "B07"]
[WhiteElo "2361"]
[BlackElo "2550"]
[Annotator "TA"]
[PlyCount "132"]
[EventDate "2022.10.21"]
[EventType "team-tourn"]
[EventCountry "GER"]
[SourceTitle "playchess.com"]
[Source "ChessBase"]
[SourceQuality "1"]
[TimeControl "40/6000+30:3000+30"]

{[%evp 14,132,56,43,40,19,15,22,44,48,45,7,7,6,6,2,6,-45,-47,-47,-51,-47,-45,-27,-13,-15,-12,-168,-164,-206,-214,-200,-212,-206,-162,-165,-142,-150,-149,-147,-137,-134,-128,-133,-133,-134,-147,-145,-137,-135,-146,-130,-152,-170,-139,-159,-166,-161,-160,-161,-158,-147,-135,-177,-175,-183,-176,-196,-187,-218,-217,-308,-307,-271,-217,-333,-330,-495,-480,-476,-221,-457,-452,-428,-414,-381,-374,-470,-472,-437,-446,-470,-447,-1097,-981,-1313,-1365,-2191,-2209,-1324,-424,-29978,-29979,-29979,-29980,-29980,-29981,-29981,-29982,-29982,-29983,-29983,-29984,-29984,-29985,-29985,-29986,-29985,-29986,-29986,-29986]} 1. d4 {[%emt 0:00:03]} d6 {[%emt 0:00:47]} 2. e4 {[%emt 0:00:11]} Nf6 {[%emt 0:00:04]} 3. Nc3 {[%emt 0:00:13]} c6 {[%emt 0:00:05]} 4. f4 {[%emt 0:01:16]} Qa5 {[%emt 0:00:06]} 5. Bd3 {[%emt 0:00:06]} e5 {[%emt 0:00:04]} 6. Nf3 {[%emt 0:00:13]} Nbd7 {[%emt 0:00:05]} 7. O-O {[%emt 0:02:33]} Be7 {[%emt 0:00:03]} 8. Kh1 {[%emt 0:14:41]} O-O {[%emt 0:00:09] B07: Pirc Defence: Miscellaneous Systems.} 9. Qe1 {[%emt 0:01:30][%cal Oc3d5]} Re8 {[%emt 0:03:15]} 10. Be3 {[%emt 0:23:55]} exd4 {[%emt 0:09:36] The position is equal.} 11. Bxd4 {[%emt 0:06:23] [#]} Nc5 $146 {[%emt 0:00:18] [#]} ({Predecessor:} 11... Bf8 12. Qh4 Qh5 13. Qg3 Qg4 14. Qxg4 Nxg4 15. a4 Ngf6 16. e5 Ng4 17. Rae1 dxe5 18. fxe5 {1-0 (26) Moranda,W (2591)-Marczuk,A (1887) Wroclaw 2014}) 12. Nd5 $1 {[%emt 0:07:21]} Qxe1 $1 {[%emt 0:01:00]} 13. Nxe7+ {[%emt 0:00:05]} Rxe7 {[%emt 0:00:05]} 14. Raxe1 {[%emt 0:00:09]} Nfd7 {[%emt 0:03:46]} 15. Re3 {[%emt 0:09:15]} (15. Nd2 $11) 15... Nxd3 $15 {[%emt 0:03:21]} 16. cxd3 {[%emt 0:00:34]} c5 {[%emt 0:00:08]} 17. Bc3 {[%emt 0:00:16]} d5 {[%emt 0:00:04]} 18. Be1 {[%emt 0:18:03]} d4 {[%emt 0:07:23]} 19. Re2 {[%emt 0:00:04]} b6 $36 {[%emt 0:00:11][%mdl 2048] White must now prevent ...Ba6. Black is pushing.} 20. Nd2 $2 {[%emt 0:02:55] Now White is beyond hope.} (20. Bh4 $11 f6 21. Rd1) 20... Ba6 $19 {[%emt 0:01:56]} 21. Nc4 {[%emt 0:00:26]} Bxc4 {[%emt 0:00:35]} 22. dxc4 {[%emt 0:00:01]} Rae8 {[%emt 0:00:09]} 23. e5 {[%emt 0:03:39]} f6 {[%emt 0:00:13][%cal Rf6e5]} 24. Bh4 {[%emt 0:01:42]} Re6 {[%emt 0:09:22][%cal Rf6e5]} 25. Bg3 {[%emt 0:00:10]} fxe5 {[%emt 0:00:22]} 26. fxe5 {[%emt 0:00:04]} Nxe5 {[%emt 0:02:14]} 27. Rfe1 {[%emt 0:02:17][%cal Re2e5] [#]} d3 $1 {[%emt 0:01:25][%cal Bd4d3,Bd3d2][%mdl 32]} 28. Re4 {[%emt 0:00:33]} ({But not} 28. Rxe5 $2 Rxe5 29. Rxe5 Rxe5 30. Bxe5 d2 $19) (28. Re3 d2) 28... d2 {[%emt 0:05:24]} 29. Rd1 {[%emt 0:00:03] [#]} Nxc4 $1 {[%emt 0:00:15][%mdl 512] Black is more active.} 30. Rxe6 {[%emt 0:00:03]} Rxe6 $17 {[%emt 0:00:06][%mdl 4096] Endgame KRB-KRN} 31. b3 {[%emt 0:00:09]} Nd6 {[%emt 0:06:16]} 32. Rxd2 {[%emt 0:00:11]} Ne4 {[%emt 0:00:01]} 33. Rd8+ {[%emt 0:08:57]} Kf7 {[%emt 0:00:08]} 34. Bb8 {[%emt 0:00:08]} Nc3 {[%emt 0:02:31][%cal Re6e1]} 35. Kg1 {[%emt 0:01:09]} a5 {[%emt 0:18:10]} ({Inferior is} 35... Nxa2 36. Bxa7 Nc1 37. Rb8 $17) (35... Re1+ 36. Kf2 Re2+ 37. Kf3 $17) 36. Rd7+ {[%emt 0:04:59]} Kg6 {[%emt 0:01:10]} 37. Rd2 {[%emt 0:00:45]} h5 {[%emt 0:07:53]} 38. Kf1 {[%emt 0:00:52]} Kf5 {[%emt 0:00:42]} 39. Rc2 {[%emt 0:02:30]} Nd5 {[%emt 0:01:29]} 40. Rd2 {[%emt 0:01:07]} Ke4 {[%emt 0:03:26]} 41. h3 {[%emt 0:02:40]} Ne3+ {[%emt 0:14:22]} 42. Kg1 {[%emt 0:06:20]} (42. Ke1 $142) 42... Rf6 $19 {[%emt 0:00:20]} 43. Rd7 {[%emt 0:02:17]} g6 {[%emt 0:07:41]} 44. Rg7 {[%emt 0:04:56]} (44. Ba7 {is a better defense.}) 44... a4 {[%emt 0:10:08]} 45. Ra7 {[%emt 0:15:50]} (45. Re7+ $142 Kd3 46. Rd7+ Ke2 47. Rg7) 45... axb3 {[%emt 0:11:15]} 46. axb3 {[%emt 0:00:05]} Rf1+ {[%emt 0:00:04]} 47. Kh2 {[%emt 0:00:03]} Rb1 {[%emt 0:01:09]} 48. Re7+ {[%emt 0:02:16]} Kd3 {[%emt 0:01:14]} 49. Re6 {[%emt 0:05:02]} h4 {[%emt 0:07:26]} 50. g4 {[%emt 0:00:32]} hxg3+ {[%emt 0:06:59]} 51. Kxg3 {[%emt 0:01:09]} Rxb3 {[%emt 0:00:05]} 52. Rxg6 {[%emt 0:00:39]} c4 {[%emt 0:00:45]} 53. h4 {[%emt 0:04:09]} (53. Be5 $142 Ke4 54. Bh8) 53... c3 {[%emt 0:00:32] Threatens to win with ...c2.} 54. Rc6 {[%emt 0:05:22]} Nd5 {[%emt 0:07:31] aiming for ...c2.} 55. h5 {[%emt 0:01:05]} c2 {[%emt 0:00:29] ( -> ...Rc3)} 56. h6 {[%emt 0:01:19]} Rb1 {[%emt 0:03:27]} (56... Nc3 $142 57. Bf4 Ne2+ 58. Kh2 Nxf4) 57. Kh2 {[%emt 0:02:47]} (57. Be5 $19 Rh1 58. Bb2) 57... c1=Q {[%emt 0:00:24] Black mates.} 58. Rxc1 {[%emt 0:00:07]} Rxc1 {[%emt 0:00:04]} 59. h7 {[%emt 0:00:05]} Rc8 {[%emt 0:00:10]} 60. Be5 {[%emt 0:00:05]} b5 {[%emt 0:00:06][%cal Bb6b5,Bb5b4,Bb4b3][%mdl 32]} 61. h8=Q {[%emt 0:00:11]} Rxh8+ {[%emt 0:00:02]} 62. Bxh8 {[%emt 0:00:13]} Nc3 {[%emt 0:00:07]} 63. Bg7 {[%emt 0:00:36]} b4 {[%emt 0:00:05]} 64. Bf8 {[%emt 0:00:03]} b3 {[%emt 0:00:04]} 65. Ba3 {[%emt 0:00:04]} Kc2 {[%emt 0:00:05]} 66. Kg2 {[%emt 0:00:12]} Nb5 {[%emt 0:00:06] Weighted Error Value: White=0.62/Black=0.13 (very precise)} 0-1

[Event "German Bundesliga 2022-23"]
[Site "Germany"]
[Date "2022.10.23"]
[Round "2.15"]
[White "Babula, Vlastimil"]
[Black "Handke, Florian"]
[Result "0-1"]
[ECO "D85"]
[WhiteElo "2574"]
[BlackElo "2526"]
[Annotator "TA"]
[PlyCount "66"]
[EventDate "2022.10.21"]
[EventType "team-tourn"]
[EventCountry "GER"]
[SourceTitle "playchess.com"]
[Source "ChessBase"]
[SourceQuality "1"]
[TimeControl "40/6000+30:3000+30"]

{[%evp 9,66,6,29,3,12,14,25,12,18,-112,-118,-118,-111,-113,-106,-111,-115,-172,-154,-205,-196,-216,-200,-197,-186,-467,-280,-355,-352,-309,-285,-277,-274,-286,-262,-275,-270,-255,-261,-295,-292,-304,-302,-301,-299,-500,-453,-476,-614,-614,-614,-567,-566,-563,-464,-555,-462,-373,-393]} 1. d4 {[%emt 0:00:05]} Nf6 {[%emt 0:00:03][%cal Bg8f6,Bf6d5,Bd5c3][%mdl 32]} 2. c4 {[%emt 0:00:09]} g6 {[%emt 0:00:03]} 3. Nc3 {[%emt 0:00:11]} d5 {[%emt 0:00:03]} 4. cxd5 {[%emt 0:00:24]} Nxd5 {[%emt 0:00:06]} 5. Bd2 {[%emt 0:00:15]} c5 {[%emt 0:00:21]} 6. dxc5 {[%emt 0:26:04] D85: Exchange Grünfeld: Unusual White 7th moves and lines with 7 Nf3.} Bg7 $1 {[%emt 0:00:28]} 7. Qb3 {[%emt 0:01:10]} Be6 {[%emt 0:02:25]} 8. Qxb7 {[%emt 0:03:03] White has an edge.} O-O $1 {[%emt 0:02:09][%cal Ob8d7] [#]} 9. e4 $146 {[%emt 0:21:17]} (9. Qxa8 $11 {keeps the balance.} Qd7 10. e4 Nxc3 11. bxc3 (11. Bxc3 Nc6 $11)) ({Predecessor:} 9. Qxa8 Qd7 10. e4 Nb4 11. Bb5 N8c6 12. Qxf8+ Kxf8 13. Rd1 a6 14. Bh6 {½-½ (50) Assaubayeva,B (2436)-Vaishali,R (2442) Chennai 2022}) 9... Nxc3 $1 $17 {[%emt 0:00:58]} 10. Bxc3 {[%emt 0:03:35]} Bxc3+ {[%emt 0:00:29]} 11. bxc3 {[%emt 0:00:02]} Nd7 {[%emt 0:02:17]} 12. c6 {[%emt 0:04:05]} Nc5 $40 {[%emt 0:02:03][%csl LRb7,LRe4][%mdl 128] White is in trouble.} 13. Qb4 {[%emt 0:01:30]} (13. Qb5 $17 Nxe4 14. Qd3) 13... Qd6 $19 {[%emt 0:02:52]} 14. Nf3 {[%emt 0:14:53] [#]} (14. Bb5 $17 Rfb8 15. Rd1) 14... Rab8 $1 {[%emt 0:01:47]} 15. Qd4 {[%emt 0:00:41]} Qxc6 {[%emt 0:00:52] ...Rfd8 is the strong threat.} 16. Be2 {[%emt 0:01:22] [#]} Rb2 $1 {[%emt 0:06:07]} (16... Nxe4 17. c4 $15) 17. Nd2 $2 {[%emt 0:03:01]} (17. Qe3) 17... Qb6 {[%emt 0:07:06]} (17... Qc7 $142 {White must now prevent ...Rd8.} 18. Rd1 Rd8) 18. Qe3 {[%emt 0:01:34]} Rd8 {[%emt 0:01:00]} 19. Nb3 {[%emt 0:01:00]} Bxb3 {[%emt 0:25:09]} (19... Nxb3 20. Qxb6 axb6 21. axb3 $19) 20. axb3 {[%emt 0:00:20]} Rdd2 {[%emt 0:00:07]} (20... Rxb3 21. O-O $17) (20... Nxb3 $2 21. Qxb6 axb6 22. Rd1 Rxd1+ 23. Bxd1 $19) 21. Bc4 {[%emt 0:05:32] [#]} Nd3+ $1 {[%emt 0:01:50][%mdl 512]} 22. Bxd3 {[%emt 0:00:57] Strongly threatening Qxb6.} Qxe3+ {[%emt 0:00:03][%mdl 64] Remove Defender} 23. fxe3 {[%emt 0:00:06] Threatens to win with Rd1.} Rxd3 {[%emt 0:00:02][%cal Bd2d3,Bd3e3,Be3e4,Be4e2,Be2c2,Bc2g2,Bg2b2,Bb2b3,Bb3c3][%mdl 32]} 24. Rxa7 {[%emt 0:03:54]} Rxe3+ {[%emt 0:09:16][%mdl 4096] Endgame KRR-KRR} 25. Kd1 {[%emt 0:02:34]} Rxe4 {[%emt 0:00:18] aiming for ...Rb1+.} ({And not} 25... Rxb3 26. Rxe7 Rexc3 27. Kd2 $17) (25... Rxg2 $2 26. Rc7 $19) (25... Rxc3 $2 26. Rxe7 Rcxb3 27. Rf1 Rb1+ 28. Kc2 R3b2+ 29. Kc3 Rxf1 30. Kxb2) 26. Kc1 {[%emt 0:00:37] Inhibits Rb1+.} Ree2 {[%emt 0:00:15]} ({Not} 26... Rxb3 27. Kc2 Rb6 28. g3 $17) (26... Rxg2 $2 27. b4 $19) 27. Rxe7 $2 {[%emt 0:00:58]} (27. g4 {was necessary.}) 27... Rec2+ {[%emt 0:00:05]} (27... Rxe7 28. Kxb2 Re2+ 29. Ka3 $16) 28. Kd1 {[%emt 0:00:06]} Rxg2 {[%emt 0:00:04][%cal Rb2b1]} 29. Kc1 {[%emt 0:00:54] Inhibits Rb1+.} Ra2 {[%emt 0:02:18][%cal Ra2a1]} 30. Kb1 {[%emt 0:00:09] Inhibits Ra1+.} Rgb2+ {[%emt 0:00:05]} 31. Kc1 {[%emt 0:00:06]} Rxb3 {[%emt 0:00:16]} 32. Rf1 {[%emt 0:01:46]} Ra1+ {[%emt 0:00:11]} 33. Kc2 {[%emt 0:00:05]} Rxc3+ {[%emt 0:00:05] Black took control after the opening.  Weighted Error Value: White=0.52/Black=0.15 (very precise)} ({Weaker is} 33... Rxf1 34. Kxb3 f5 35. Ra7 $17) 0-1

[Event "German Bundesliga 2022-23"]
[Site "Germany"]
[Date "2022.10.23"]
[Round "2.15"]
[White "Maurizzi, Marc`Andria"]
[Black "Schmidek, Emil"]
[Result "1-0"]
[ECO "B15"]
[WhiteElo "2521"]
[BlackElo "2414"]
[Annotator "TA"]
[PlyCount "93"]
[EventDate "2022.10.21"]
[EventType "team-tourn"]
[EventCountry "GER"]
[SourceTitle "playchess.com"]
[Source "ChessBase"]
[SourceQuality "1"]
[TimeControl "40/6000+30:3000+30"]

{[%evp 10,93,33,17,11,14,33,22,39,39,18,39,38,37,24,20,38,37,60,38,49,50,57,51,62,61,64,57,57,29,35,30,49,23,90,34,24,25,36,-10,-5,-9,-16,-20,-17,-88,-83,-78,163,162,153,161,153,145,150,136,111,0,18,0,0,-136,-87,-162,-19,-87,-58,-46,0,0,0,-30,306,318,316,279,4810,4806,4690,2668,29972,29964,6319,5387,5365,1720]} 1. e4 {[%emt 0:00:03]} c6 {[%emt 0:00:06]} 2. d4 {[%emt 0:00:04]} d5 {[%emt 0:00:05]} 3. Nc3 {[%emt 0:00:04]} dxe4 {[%emt 0:00:07]} 4. Nxe4 {[%emt 0:00:02]} Nf6 {[%emt 0:00:10]} 5. Nxf6+ {[%emt 0:00:09]} exf6 {[%emt 0:00:08]} 6. Be3 {[%emt 0:00:51]} Bd6 {[%emt 0:00:14] B15: Caro-Kann: 3 Nc3: 3...g6 and 3...dxe4 4 Nxe4 Nf6 5 Nxf6+ exf6.} 7. Bd3 {[%emt 0:00:43]} Nd7 {[%emt 0:00:12]} 8. Ne2 {[%emt 0:00:37]} f5 {[%emt 0:00:20] [#] The position is equal.} 9. Qd2 $146 {[%emt 0:04:58]} ({Predecessor:} 9. O-O Nf6 10. c4 O-O 11. Qc2 Ng4 12. h3 Nxe3 13. fxe3 g6 14. Rf3 Bd7 15. Raf1 {1-0 (29) Vokhidov,S (2552)-Keymer,V (2672) Chess.com INT 2022}) 9... Nf6 {[%emt 0:00:30]} 10. Ng3 {[%emt 0:10:53]} g6 {[%emt 0:07:12]} 11. O-O {[%emt 0:01:33]} Be6 {[%emt 0:31:21]} 12. Rfe1 {[%emt 0:17:46]} Nd5 {[%emt 0:11:11]} 13. Bg5 {[%emt 0:03:02]} Be7 {[%emt 0:00:12]} 14. Bxe7 {[%emt 0:00:18]} Nxe7 {[%emt 0:01:48]} 15. Ne2 {[%emt 0:01:41]} Qd6 {[%emt 0:05:23]} 16. Nf4 {[%emt 0:01:45]} O-O-O {[%emt 0:08:48]} 17. c3 {[%emt 0:00:15]} Nd5 {[%emt 0:04:40]} 18. Nxe6 {[%emt 0:01:14]} fxe6 {[%emt 0:00:08][%cal Bf7e6,Be6e5,Be5e4][%mdl 32]} 19. Re5 {[%emt 0:03:06]} Nf6 {[%emt 0:06:36]} 20. h3 {[%emt 0:04:42] Against Ng4} Nd7 {[%emt 0:01:51]} 21. Re3 {[%emt 0:00:45]} c5 {[%emt 0:09:54]} (21... Rhe8 $11) 22. Rae1 {[%emt 0:00:52]} ({White should try} 22. Qe1 $16) 22... Rhe8 $14 {[%emt 0:00:50]} 23. Bb5 $36 {[%emt 0:03:05][%mdl 2048] White is pushing.} e5 {[%emt 0:01:22]} 24. Rd3 {[%emt 0:11:59]} (24. d5 $14) 24... cxd4 $1 $11 {[%emt 0:04:18]} 25. cxd4 {[%emt 0:00:15]} e4 {[%emt 0:00:27]} 26. Ra3 {[%emt 0:00:27]} Kb8 {[%emt 0:01:23]} 27. Ree3 {[%emt 0:00:09]} (27. Rc1 $11) 27... Rf8 {[%emt 0:07:19]} 28. Reb3 {[%emt 0:05:12]} Nc5 $2 {[%emt 0:02:42]} (28... Nb6 $1 $17 {and life is bright.}) 29. Qa5 $1 $18 {[%emt 0:00:38]} Nxb3 {[%emt 0:00:09]} 30. Qxa7+ {[%emt 0:00:04]} Kc7 {[%emt 0:00:48]} 31. Rxb3 {[%emt 0:03:14] White wants to mate with Rc3+.} Rc8 {[%emt 0:01:04]} 32. Bf1 {[%emt 0:06:02][%mdl 1024] White has strong compensation.} (32. Rc3+ Kd8 $15) 32... Rb8 {[%emt 0:03:06] [#]} 33. a4 {[%emt 0:00:02] White is more active.} ({White should play} 33. Ba6 $1 $16 {[%mdl 512]}) 33... Rfc8 $1 $11 {[%emt 0:02:01]} 34. Qa5+ {[%emt 0:02:31]} Kd7 {[%emt 0:00:33]} 35. d5 {[%emt 0:04:21]} (35. Rb6 $11 Qxd4 36. Rb4) 35... Rc5 {[%emt 0:00:23]} (35... Rc1 $142 $1 {White must now prevent ...Qc5.} 36. Rc3 Rd1) 36. Qa7 {[%emt 0:00:04] Prevents Qc5.} (36. Rb5 $17 Rxb5 37. Bxb5+ Ke7 38. Qa7) 36... Rxd5 {[%emt 0:00:34]} (36... Qc7 $19 {Hoping for ...b6.} 37. a5 b6 38. axb6 Qxa7 39. bxa7 Ra8 40. Rb7+ Rc7) 37. g3 {[%emt 0:02:08]} (37. Rxb7+ $11 {keeps the balance.} Rxb7 38. Qxb7+ Ke8 39. Qxh7) 37... Rd1 {[%emt 0:00:13][%cal Od6d5] Strongly threatening ...Qd5!} 38. Kg2 $1 {[%emt 0:00:01]} Qd5 {[%emt 0:00:49]} (38... Rd2 $15 39. Rxb7+ Rxb7 40. Qxb7+ Qc7) 39. Rb5 {[%emt 0:05:25]} Qd6 {[%emt 0:00:09]} 40. a5 {[%emt 0:04:45][%cal Ba4a5,Ba5a6][%mdl 32] Chess con chili.} Ke8 $2 {[%emt 0:00:52][%mdl 8192] [#]} (40... Rd2 $11) 41. a6 $1 $18 {[%emt 0:56:35]} Rxf1 {[%emt 0:48:13]} 42. Kxf1 {[%emt 0:00:00] KQR-KQR} Rd8 $2 {[%emt 0:00:19]} (42... Qd1+ $2 43. Kg2 Rd8 44. Rxb7 $18) (42... f4) 43. Rxb7 {[%emt 0:00:00]} (43. Qxb7 Qd1+ 44. Kg2 Qf3+ 45. Kh2 Qxf2+ 46. Kh1 Rd1#) 43... f4 {[%emt 0:00:48] [#]} 44. Kg2 $1 {[%emt 0:00:00]} (44. Rxh7 Qd1+ 45. Kg2 Qf3+ 46. Kh2 fxg3+ 47. fxg3 Rd2+) 44... Qd5 {[%emt 0:02:30]} 45. gxf4 {[%emt 0:00:00]} ({And not} 45. Re7+ Kf8 46. Qb7 (46. gxf4 e3+ 47. f3 Qd2+ 48. Kg3 Qe1+ 49. Kg4 Qg1+ 50. Kh4 Qe1+ 51. Kg4 Qg1+ 52. Kh4 Qe1+ 53. Kg4 $11) 46... f3+ 47. Kg1 Qc4 $11) 45... Qh5 {[%emt 0:00:40]} 46. Re7+ {[%emt 0:00:00]} Kf8 {[%emt 0:00:03]} 47. Rxe4 {[%emt 0:00:00] Weighted Error Value: White=0.23 (precise) /Black=0.53} ({Worse is} 47. Rxh7 Qf3+ 48. Kh2 Qxf4+ 49. Kg2 Qf3+ 50. Kh2 Qf4+ 51. Kg2 Qf3+ 52. Kh2 Qf4+ $11) (47. Rf7+ $142 Kg8 48. Rd7) 1-0

[Event "German Bundesliga 2022-23"]
[Site "Germany"]
[Date "2022.10.23"]
[Round "2.15"]
[White "Dudin, Gleb"]
[Black "Buhmann, Rainer"]
[Result "1-0"]
[ECO "E06"]
[WhiteElo "2471"]
[BlackElo "2561"]
[Annotator "TA"]
[PlyCount "81"]
[EventDate "2022.10.21"]
[EventType "team-tourn"]
[EventCountry "GER"]
[SourceTitle "playchess.com"]
[Source "ChessBase"]
[SourceQuality "1"]
[TimeControl "40/6000+30:3000+30"]

{[%evp 12,81,23,18,19,26,27,21,28,8,21,0,37,47,58,49,78,68,77,69,77,80,97,102,98,110,108,97,110,93,93,78,83,97,115,125,94,95,122,87,86,94,80,82,81,96,74,77,94,85,143,124,129,123,177,172,177,119,440,451,501,559,554,566,544,523,814,475,29983,29984,29988,29989]} 1. d4 {[%emt 0:00:35]} Nf6 {[%emt 0:00:19]} 2. c4 {[%emt 0:00:12]} e6 {[%emt 0:00:07]} 3. Nf3 {[%emt 0:00:10]} d5 {[%emt 0:00:18]} 4. g3 {[%emt 0:00:10]} Be7 {[%emt 0:00:15]} 5. Bg2 {[%emt 0:00:10]} O-O {[%emt 0:00:05]} 6. O-O {[%emt 0:00:55]} c6 {[%emt 0:00:17]} 7. Nc3 {[%emt 0:00:32]} a5 {[%emt 0:00:32] E06: Closed Catalan: Early deviations.} 8. Nd2 {[%emt 0:06:26]} b5 {[%emt 0:01:33]} 9. cxb5 {[%emt 0:00:10]} cxb5 {[%emt 0:00:05] The position is equal.} 10. Nxb5 {[%emt 0:00:09]} Qb6 {[%emt 0:05:16]} 11. Nc3 {[%emt 0:02:09] [#]} Nc6 $146 {[%emt 0:06:40]} ({Predecessor:} 11... Qxd4 12. e4 Ba6 13. Nb3 Qb4 14. a3 Qb7 15. Re1 Rd8 16. exd5 Nc6 17. d6 Rxd6 {1-0 (27) Yilmazyerli,M (2520)-Zakarian,D (2300) Paleochora 2022}) 12. Nb3 {[%emt 0:20:08]} Ba6 {[%emt 0:14:45]} 13. Re1 {[%emt 0:04:11]} Rfc8 {[%emt 0:26:06]} 14. Bg5 {[%emt 0:13:08]} Bc4 {[%emt 0:12:50]} 15. Na4 {[%emt 0:02:43]} Qa7 {[%emt 0:03:39]} 16. Nbc5 {[%emt 0:04:10]} Bb5 {[%emt 0:04:43]} 17. e3 {[%emt 0:05:25]} Nb4 {[%emt 0:04:34]} 18. Bxf6 {[%emt 0:07:16]} Bxf6 {[%emt 0:06:02]} 19. Bf1 {[%emt 0:04:15]} Be8 {[%emt 0:02:49]} 20. a3 {[%emt 0:06:20]} Nc6 {[%emt 0:00:07]} 21. Nc3 {[%emt 0:00:24] Pair of Knights!} Rd8 {[%emt 0:04:14]} 22. Rc1 {[%emt 0:06:36]} e5 {[%emt 0:03:12]} 23. Bg2 {[%emt 0:02:25]} Ne7 {[%emt 0:04:02]} 24. dxe5 {[%emt 0:03:58] White has more active pieces.} Bxe5 {[%emt 0:00:02]} 25. Nd3 {[%emt 0:00:45][%cal Bc5d3,Bd3f4,Bf4d5][%mdl 32]} ({Don't play} 25. Nxd5 $6 Bxb2 26. Rb1 Qxc5 $11) 25... Bf6 {[%emt 0:00:48]} 26. Nf4 {[%emt 0:02:30]} Rab8 {[%emt 0:00:29]} 27. Re2 $36 {[%emt 0:00:35][%cal Rc3d5][%mdl 2048] Keeping Black busy.} d4 {[%emt 0:04:08]} 28. exd4 {[%emt 0:03:31]} Bxd4 {[%emt 0:00:43]} 29. Qe1 {[%emt 0:00:07]} Ng6 {[%emt 0:00:53]} 30. Nfd5 {[%emt 0:01:51]} h5 {[%emt 0:02:18]} (30... Bc6 $142) 31. Rd1 {[%emt 0:03:14]} Bd7 {[%emt 0:00:48]} 32. Qd2 {[%emt 0:02:48]} Bc5 {[%emt 0:00:52]} (32... Bxc3 $16 33. Nxc3 Qb6) 33. Bf3 {[%emt 0:00:37]} h4 {[%emt 0:00:40] [#]} 34. Qg5 {[%emt 0:00:35]} (34. b4 $1 $18 {[%cal Rb4c5]} axb4 35. axb4) 34... Be8 $2 {[%emt 0:01:02][%mdl 8192] This costs Black the game.} (34... Re8 $16) 35. gxh4 $18 {[%emt 0:01:13]} f6 {[%emt 0:01:55] [#]} 36. Rxe8+ $1 {[%emt 0:00:52]} Rxe8 {[%emt 0:00:02]} 37. Qxg6 {[%emt 0:00:09]} Bxf2+ {[%emt 0:00:56]} 38. Kh1 {[%emt 0:01:34] Nxf6+ would kill now.} Bxh4 {[%emt 0:00:38]} 39. Ne4 {[%emt 0:03:27][%cal Rd5f6] Intending Ndxf6+ and mate.} Rf8 {[%emt 0:00:38]} (39... Qf7 $18 40. Qg4 Bg5) 40. Nd6 {[%emt 0:00:59]} Bg5 {[%emt 0:00:35]} 41. Be4 {[%emt 0:52:04] Weighted Error Value: White=0.25 (precise) /Black=0.40} 1-0

[Event "German Bundesliga 2022-23"]
[Site "Germany"]
[Date "2022.10.23"]
[Round "2.16"]
[White "Naumann, Alexander"]
[Black "Wachinger, Nikolas"]
[Result "1/2-1/2"]
[ECO "E06"]
[WhiteElo "2513"]
[BlackElo "2432"]
[Annotator "ChessBase"]
[PlyCount "101"]
[EventDate "2022.10.21"]
[EventType "team-tourn"]
[EventCountry "GER"]
[SourceTitle "playchess.com"]
[Source "ChessBase"]
[SourceQuality "1"]
[TimeControl "40/6000+30:3000+30"]

1. d4 {[%emt 0:00:03]} Nf6 {[%emt 0:00:11]} 2. c4 {[%emt 0:00:04]} e6 {[%emt 0:00:10]} 3. Nf3 {[%emt 0:00:31]} d5 {[%emt 0:00:10]} 4. g3 {[%emt 0:00:10]} Be7 {[%emt 0:00:14]} 5. Bg2 {[%emt 0:00:05]} O-O {[%emt 0:00:10]} 6. Nc3 {[%emt 0:00:58]} dxc4 {[%emt 0:02:00]} 7. Ne5 {[%emt 0:00:30]} c5 {[%emt 0:00:14]} 8. dxc5 {[%emt 0:00:54]} Qxd1+ {[%emt 0:00:09]} 9. Nxd1 {[%emt 0:00:09]} Bxc5 {[%emt 0:00:14]} 10. O-O {[%emt 0:01:31]} Nd5 {[%emt 0:03:28]} 11. Ne3 {[%emt 0:02:44]} Nxe3 {[%emt 0:21:54]} 12. Bxe3 {[%emt 0:00:15]} Bxe3 {[%emt 0:00:10]} 13. fxe3 {[%emt 0:00:06]} c3 {[%emt 0:00:50]} 14. bxc3 {[%emt 0:03:58]} f6 {[%emt 0:02:23]} 15. Nc4 {[%emt 0:06:11]} Nd7 {[%emt 0:09:26]} 16. Rab1 {[%emt 0:05:37]} Rb8 {[%emt 0:07:09]} 17. Na5 {[%emt 0:07:53]} Nc5 {[%emt 0:05:28]} 18. Nc6 {[%emt 0:02:50]} Ra8 {[%emt 0:00:08]} 19. Rb5 {[%emt 0:21:11]} bxc6 {[%emt 0:10:27]} 20. Rxc5 {[%emt 0:00:56]} Bd7 {[%emt 0:33:18]} 21. Rd1 {[%emt 0:07:03]} Rfd8 {[%emt 0:09:02]} 22. Ra5 {[%emt 0:11:44]} Kf8 {[%emt 0:00:12]} 23. Rb1 {[%emt 0:03:15]} Ke7 {[%emt 0:00:28]} 24. Rb7 {[%emt 0:00:50]} Kd6 {[%emt 0:00:06]} 25. c4 {[%emt 0:01:20]} Rdc8 {[%emt 0:02:51]} 26. c5+ {[%emt 0:00:43]} Ke7 {[%emt 0:00:03]} 27. Ra3 {[%emt 0:15:38]} Rab8 {[%emt 0:00:15]} 28. Rbxa7 {[%emt 0:00:51]} Kd8 {[%emt 0:00:09]} 29. Rd3 {[%emt 0:01:05]} Rc7 {[%emt 0:00:05]} 30. Ra6 {[%emt 0:00:43]} Ke7 {[%emt 0:01:42]} 31. Rb3 {[%emt 0:05:29]} Rxb3 {[%emt 0:01:16]} 32. axb3 {[%emt 0:00:02]} g5 {[%emt 0:01:26]} 33. Rb6 {[%emt 0:04:02]} Kd8 {[%emt 0:00:06]} 34. Be4 {[%emt 0:02:07]} h6 {[%emt 0:00:38]} 35. Rb8+ {[%emt 0:02:02]} Rc8 {[%emt 0:00:07]} 36. Rxc8+ {[%emt 0:01:38]} Kxc8 {[%emt 0:00:02]} 37. b4 {[%emt 0:00:19]} Kc7 {[%emt 0:00:08]} 38. Kf2 {[%emt 0:00:17]} Be8 {[%emt 0:01:08]} 39. Bd3 {[%emt 0:00:16]} Bh5 {[%emt 0:00:54]} 40. Bc4 {[%emt 0:02:02]} Bg4 {[%emt 0:00:34]} 41. e4 {[%emt 0:51:29]} e5 {[%emt 0:08:15]} 42. Ke3 {[%emt 0:00:00]} Bh5 {[%emt 0:05:10]} 43. Kd2 {[%emt 0:00:00]} Bg6 {[%emt 0:02:03]} 44. Bd3 {[%emt 0:00:00]} Bh7 {[%emt 0:03:55]} 45. Kc3 {[%emt 0:00:00]} Bg6 {[%emt 0:00:30]} 46. Kb3 {[%emt 0:00:00]} Bh7 {[%emt 0:00:53]} 47. Ka4 {[%emt 0:00:00]} Bg6 {[%emt 0:00:37]} 48. Ka5 {[%emt 0:00:00]} Bh7 {[%emt 0:00:26]} 49. b5 {[%emt 0:00:00]} cxb5 {[%emt 0:00:06]} 50. Kxb5 {[%emt 0:00:00]} Bg6 {[%emt 0:00:08]} 51. Kb4 {[%emt 0:00:00]} 1/2-1/2